fUSD/lending_fUSD_20240905
["ID","MTS","AMOUNT","RATE_DAILY","PERIOD"]
[337214357,1725502233392,-500.0,0.00014868,2]
[337214358,1725502233402,-29.14660774,0.00014868,2]
[337214359,1725502233415,-470.85339226,0.00014868,2]
[337214360,1725502233425,-1716.15,0.00014868,2]
[337214361,1725502233435,-500.0,0.00014868,2]
[337214362,1725502233444,-500.0,0.00014868,2]
[337214363,1725502233456,-500.0,0.00014868,2]
[337214364,1725502233466,-500.0,0.00014868,2]
[337214365,1725502233475,-500.0,0.00014868,2]
[337214366,1725502233484,-500.0,0.00014868,2]
[337214367,1725502233493,-500.0,0.00014868,2]
[337214368,1725502233503,-500.0,0.00014868,2]
[337214369,1725502233512,-7530.58,0.00014868,2]
[337214370,1725502233521,-2647.56,0.00014868,2]
[337214371,1725502233531,-1781.56,0.00014868,2]
[337214372,1725502233540,-500.0,0.00014868,2]
[337214373,1725502233550,-532.89,0.00014868,2]
[337214374,1725502233559,-500.0,0.00014868,2]
[337214375,1725502233568,-500.0,0.00014868,2]
[337214376,1725502233578,-500.0,0.00014868,2]
[337214377,1725502233588,-500.0,0.00014868,2]
[337214378,1725502233597,-500.0,0.00014868,2]
[337214379,1725502233608,-500.0,0.00014868,2]
[337214380,1725502233617,-500.0,0.00014868,2]
[337214381,1725502233627,-190.24395901,0.00014868,2]
[337214382,1725502233636,-500.0,0.00014868,2]
[337214383,1725502233645,-500.0,0.00014868,2]
[337214384,1725502233655,-500.0,0.00014868,2]
[337214385,1725502233664,-500.0,0.00014868,2]
[337214386,1725502233673,-500.0,0.00014868,2]
[337214387,1725502233682,-500.0,0.00014868,2]
[337214388,1725502233691,-500.0,0.00014868,2]
[337214389,1725502233700,-500.0,0.00014868,2]
[337214390,1725502233712,-14443.65983418,0.00014869,2]
[337214391,1725502233724,-1934.50398302,0.00014869,2]
[337214392,1725502233733,-591.69082898,0.00014869,2]
[337214393,1725502233743,-598.14,0.00014869,2]
[337214394,1725502233752,-947.64,0.00014869,2]
[337214395,1725502233762,-500.0,0.00014869,2]
[337214396,1725502233771,-501.00171985,0.00014869,2]
[337214397,1725502233781,-45.34782785,0.00014869,2]
[337214398,1725502233793,-882.05217215,0.00014869,2]
[337214399,1725502233802,-500.0,0.00014869,2]
[337214400,1725502233812,-677.56,0.00014869,2]
[337214401,1725502233822,-500.0,0.00014869,2]
[337214402,1725502233832,-78.5522842,0.00014869,2]
[337214404,1725502238436,-404.46728542,0.000129,2]
[337214405,1725502238448,-1881.06381458,0.000129,2]
[337214406,1725502238458,-445.30799581,0.00014829,2]
[337214407,1725502238467,-1320.34866,0.0001484,2]
[337214408,1725502238476,-445.30799581,0.00014846,2]
[337214410,1725502238485,-500.0,0.00014868,2]
[337214411,1725502238494,-254.88331845,0.00014868,2]
[337214412,1725502238504,-500.0,0.00014868,2]
[337214413,1725502238513,-500.0,0.00014868,2]
[337214414,1725502238522,-500.0,0.00014868,2]
[337214415,1725502238531,-500.0,0.00014868,2]
[337214416,1725502238541,-500.0,0.00014868,2]
[337214417,1725502238550,-500.0,0.00014868,2]
[337214418,1725502238560,-500.0,0.00014868,2]
[337214419,1725502238569,-500.0,0.00014868,2]
[337214420,1725502238579,-500.0,0.00014868,2]
[337214421,1725502238587,-500.0,0.00014868,2]
[337214422,1725502238597,-500.0,0.00014868,2]
[337214423,1725502238606,-500.0,0.00014868,2]
[337214424,1725502238616,-500.0,0.00014868,2]
[337214425,1725502238625,-500.0,0.00014868,2]
[337214426,1725502238634,-178.84028189,0.00014868,2]
[337214427,1725502238643,-500.0,0.00014868,2]
[337214428,1725502238653,-500.0,0.00014868,2]
[337214429,1725502238662,-500.0,0.00014868,2]
[337214430,1725502238671,-500.0,0.00014868,2]
[337214431,1725502238680,-500.0,0.00014868,2]
[337214432,1725502238689,-500.0,0.00014868,2]
[337214433,1725502238698,-500.0,0.00014868,2]
[337214434,1725502238707,-230.22460176,0.00014868,2]
[337214435,1725502238716,-289.4571649,0.00014868,2]
[337214436,1725502238728,-210.5428351,0.00014868,2]
[337214437,1725502238737,-421.4477158,0.00014869,2]
[337214438,1725502238747,-830.56,0.00014869,2]
[337214439,1725502238756,-217.58038894,0.00014869,2]
[337214440,1725502238766,-506.46667555,0.00014869,2]
[337214441,1725502238775,-524.73062303,0.00014869,2]
[337214442,1725502238784,-450.65323147,0.00014869,2]
[337214443,1725502238795,-49.34676853,0.00014869,2]
[337214444,1725502238804,-500.0,0.00014869,2]
[337214445,1725502238814,-500.0,0.00014869,2]
[337214447,1725502238823,-500.0,0.00014869,2]
[337214449,1725502238832,-500.0,0.00014869,2]
[337214451,1725502238842,-500.0,0.00014869,2]
[337214453,1725502238851,-709.38,0.00014869,2]
[337214455,1725502238860,-1019.32,0.00014869,2]
[337214457,1725502238870,-500.0,0.00014869,2]
[337214459,1725502238879,-500.0,0.00014869,2]
[337214461,1725502238888,-500.0,0.00014869,2]
[337214463,1725502238897,-244.53238027,0.00014869,2]
[337214465,1725502238908,-52.40743877,0.00014869,2]
[337214467,1725502238917,-1016.74,0.00014869,2]
[337214469,1725502238926,-713.47327394,0.00014869,2]
[337214471,1725502238937,-1042.82955653,0.00014869,2]
[337214473,1725502238948,-583.44794261,0.00014869,2]
[337214475,1725502238959,-580.10413311,0.00014869,2]
[337214476,1725502238970,-1291.06,0.00014869,2]
[337214477,1725502238981,-622.21983407,0.00014869,2]
[337214478,1725502238991,-3088.10000001,0.00014869,2]
[337214479,1725502239003,-145.73525973,0.00014869,2]
[337214480,1725502239011,-417.57800935,0.00014869,2]
[337214482,1725502239022,-428.61941707,0.00014869,2]
[337214484,1725502239033,-824.51259311,0.00014869,2]
[337214486,1725502239044,-356.528,0.00014869,2]
[337214488,1725502239056,-3687.08198047,0.00014869,2]
[337214490,1725502239065,-8553.38,0.00014869,2]
[337214492,1725502239074,-500.0,0.00014869,2]
[337214494,1725502239083,-500.0,0.00014869,2]
[337214496,1725502239093,-500.0,0.00014869,2]
[337214498,1725502239102,-856.41,0.00014869,2]
[337214500,1725502239110,-500.0,0.00014869,2]
[337214502,1725502239123,-1406.35,0.00014869,2]
[337214504,1725502239132,-500.0,0.00014869,2]
[337214506,1725502239141,-513.4,0.00014869,2]
[337214508,1725502239150,-617.53983238,0.00014869,2]
[337214510,1725502239159,-500.0,0.00014869,2]
[337214512,1725502239169,-500.0,0.00014869,2]
[337214514,1725502239178,-500.0,0.00014869,2]
[337214516,1725502239187,-500.0,0.00014869,2]
[337214518,1725502239198,-500.0,0.00014869,2]
[337214520,1725502239208,-500.0,0.00014869,2]
[337214522,1725502239217,-500.0,0.00014869,2]
[337214523,1725502239227,-500.0,0.00014869,2]
[337214525,1725502239237,-1019.26,0.00014869,2]
[337214527,1725502239247,-500.0,0.00014869,2]
[337214529,1725502239256,-623.61,0.00014869,2]
[337214531,1725502239265,-500.0,0.00014869,2]
[337214533,1725502239275,-1044.58,0.00014869,2]
[337214535,1725502239284,-500.0,0.00014869,2]
[337214537,1725502239293,-500.0,0.00014869,2]
[337214539,1725502239302,-500.0,0.00014869,2]
[337214541,1725502239311,-500.0,0.00014869,2]
[337214543,1725502239320,-500.0,0.00014869,2]
[337214545,1725502239329,-1493.11,0.00014869,2]
[337214546,1725502239338,-500.0,0.00014869,2]
[337214548,1725502239347,-621.25,0.00014869,2]
[337214549,1725502239358,-7926.01408968,0.00014872,2]
[337214550,1725502239372,-500.0,0.00014873,2]
[337214551,1725502239384,-500.0,0.00014873,2]
[337214552,1725502239395,-500.0,0.00014873,2]
[337214553,1725502239404,-434.52846814,0.00014873,2]
[337214554,1725502239415,-500.0,0.00014874,2]
[337214555,1725502239424,-500.0,0.00014874,2]
[337214556,1725502239434,-500.0,0.00014874,2]
[337214557,1725502239443,-500.0,0.00014874,2]
[337214558,1725502239452,-500.0,0.00014874,2]
[337214559,1725502239462,-500.0,0.00014874,2]
[337214560,1725502239472,-730.44,0.00014874,2]
[337214561,1725502239481,-500.0,0.00014874,2]
[337214562,1725502239490,-1716.15,0.00014874,2]
[337214563,1725502239499,-500.0,0.00014874,2]
[337214564,1725502239508,-500.0,0.00014874,2]
[337214565,1725502239518,-500.0,0.00014874,2]
[337214566,1725502239527,-500.0,0.00014874,2]
[337214567,1725502239536,-7530.58,0.00014874,2]
[337214568,1725502239545,-2647.56,0.00014874,2]
[337214569,1725502239554,-1781.56,0.00014874,2]
[337214570,1725502239563,-500.0,0.00014874,2]
[337214571,1725502239572,-532.89,0.00014874,2]
[337214572,1725502239581,-5459.38793906,0.00014874,2]
[337214573,1725502239590,-21837.5517562,0.00014875,2]
[337214574,1725502239599,-150.02,0.00014875,2]
[337214575,1725502239608,-2802.27,0.00014875,2]
[337214576,1725502239620,-652.69,0.00014875,2]
[337214577,1725502239629,-2751.52,0.00014875,2]
[337214578,1725502239638,-3672.75,0.00014875,2]
[337214579,1725502239649,-1524.3,0.00014875,2]
[337214580,1725502239658,-500.0,0.00014875,2]
[337214581,1725502239667,-771.03,0.00014875,2]
[337214582,1725502239678,-500.0,0.00014875,2]
[337214583,1725502239687,-500.0,0.00014875,2]
[337214584,1725502239697,-3230.85,0.00014875,2]
[337214585,1725502239709,-500.0,0.00014875,2]
[337214586,1725502239718,-500.0,0.00014875,2]
[337214587,1725502239727,-890.6,0.00014875,2]
[337214588,1725502239736,-685.43,0.00014875,2]
[337214589,1725502239745,-1112.21,0.00014875,2]
[337214590,1725502239754,-500.0,0.00014875,2]
[337214591,1725502239764,-500.0,0.00014875,2]
[337214592,1725502239773,-500.0,0.00014875,2]
[337214593,1725502239783,-500.0,0.00014875,2]
[337214594,1725502239792,-500.0,0.00014875,2]
[337214595,1725502239801,-500.0,0.00014875,2]
[337214596,1725502239810,-500.0,0.00014875,2]
[337214597,1725502239819,-500.0,0.00014875,2]
[337214598,1725502239828,-5459.38793906,0.00014876,2]
[337214599,1725502239837,-27296.9396953,0.00014877,2]
[337214600,1725502239847,-16378.1638172,0.00014878,2]
[337214601,1725502239856,-2802.27,0.00014878,2]
[337214602,1725502239867,-652.69,0.00014878,2]
[337214603,1725502239876,-2751.52,0.00014878,2]
[337214604,1725502239885,-3672.75,0.00014878,2]
[337214605,1725502239894,-1524.3,0.00014878,2]
[337214606,1725502239903,-500.0,0.00014878,2]
[337214607,1725502239912,-771.03,0.00014878,2]
[337214608,1725502239921,-385.97894862,0.00014878,2]
[337214609,1725502239930,-500.0,0.00014878,2]
[337214610,1725502239940,-500.0,0.00014878,2]
[337214611,1725502239949,-3230.85,0.00014878,2]
[337214612,1725502239958,-514.9957537,0.00014878,2]
[337214613,1725502239968,-500.0,0.00014878,2]
[337214614,1725502239977,-500.0,0.00014878,2]
[337214615,1725502239986,-890.6,0.00014878,2]
[337214616,1725502239995,-685.43,0.00014878,2]
[337214617,1725502240004,-1112.21,0.00014878,2]
[337214618,1725502240013,-500.0,0.00014878,2]
[337214619,1725502240022,-500.0,0.00014878,2]
[337214620,1725502240031,-500.0,0.00014878,2]
[337214621,1725502240040,-500.0,0.00014878,2]
[337214622,1725502240050,-500.0,0.00014878,2]
[337214623,1725502240059,-500.0,0.00014878,2]
[337214624,1725502240068,-500.0,0.00014878,2]
[337214625,1725502240078,-730.44,0.00014878,2]
[337214626,1725502240087,-500.0,0.00014878,2]
[337214627,1725502240096,-500.0,0.00014878,2]
[337214628,1725502240105,-1716.15,0.00014878,2]
[337214629,1725502240116,-529.13993608,0.00014878,2]
[337214630,1725502240125,-500.0,0.00014878,2]
[337214631,1725502240134,-500.0,0.00014878,2]
[337214632,1725502240144,-500.0,0.00014878,2]
[337214633,1725502240153,-271.61402109,0.00014878,2]
[337214634,1725502240162,-500.0,0.00014878,2]
[337214635,1725502240172,-500.0,0.00014878,2]
[337214636,1725502240181,-500.0,0.00014878,2]
[337214637,1725502240190,-7530.58,0.00014878,2]
[337214638,1725502240199,-2647.56,0.00014878,2]
[337214639,1725502240209,-1781.56,0.00014878,2]
[337214640,1725502240218,-500.0,0.00014878,2]
[337214641,1725502240227,-532.89,0.00014878,2]
[337214642,1725502240236,-10918.7758781,0.00014878,2]
[337214643,1725502240246,-500.0,0.00014879,2]
[337214644,1725502240255,-1016.74,0.00014879,2]
[337214645,1725502240265,-8066.97,0.00014879,2]
[337214646,1725502240274,-5714.32,0.00014879,2]
[337214647,1725502240284,-8553.38,0.00014879,2]
[337214648,1725502240293,-500.0,0.00014879,2]
[337214649,1725502240302,-10918.7758781,0.00014879,2]
[337214650,1725502240311,-500.0,0.00014884,2]
[337214651,1725502240321,-500.0,0.00014884,2]
[337214652,1725502240331,-500.0,0.00014884,2]
[337214653,1725502240340,-500.0,0.00014884,2]
[337214654,1725502240349,-686.71,0.00014884,2]
[337214655,1725502240358,-905.2,0.00014884,2]
[337214656,1725502240369,-500.0,0.00014884,2]
[337214657,1725502240383,-500.0,0.00014884,2]
[337214658,1725502240395,-2099.49,0.00014884,2]
[337214659,1725502240404,-33785.19662465,0.00014884,2]
[337214660,1725502240414,-598.14,0.00014885,2]
[337214661,1725502240425,-947.64,0.00014885,2]
[337214662,1725502240434,-500.0,0.00014885,2]
[337214663,1725502240443,-927.4,0.00014885,2]
[337214664,1725502240452,-500.0,0.00014885,2]
[337214665,1725502240462,-677.56,0.00014885,2]
[337214666,1725502240472,-500.0,0.00014885,2]
[337214668,1725502240481,-500.0,0.00014885,2]
[337214670,1725502240491,-830.56,0.00014885,2]
[337214672,1725502240500,-500.0,0.00014885,2]
[337214674,1725502240510,-500.0,0.00014885,2]
[337214676,1725502240520,-500.0,0.00014885,2]
[337214678,1725502240529,-500.0,0.00014885,2]
[337214679,1725502240538,-500.0,0.00014885,2]
[337214680,1725502240548,-641.5945815,0.00014885,2]
[337214681,1725502240558,-709.38,0.00014885,2]
[337214682,1725502240567,-1019.32,0.00014885,2]
[337214683,1725502240576,-500.0,0.00014885,2]
[337214684,1725502240585,-500.0,0.00014885,2]
[337214685,1725502240594,-500.0,0.00014885,2]
[337214686,1725502240604,-500.0,0.00014885,2]
[337214687,1725502240613,-500.0,0.00014885,2]
[337214688,1725502240623,-500.0,0.00014885,2]
[337214689,1725502240632,-500.0,0.00014885,2]
[337214690,1725502240641,-730.44,0.00014885,2]
[337214691,1725502240651,-500.0,0.00014885,2]
[337214692,1725502240661,-1716.15,0.00014885,2]
[337214693,1725502240670,-500.0,0.00014885,2]
[337214694,1725502240680,-500.0,0.00014885,2]
[337214695,1725502240689,-500.0,0.00014885,2]
[337214696,1725502240698,-7530.58,0.00014885,2]
[337214697,1725502240708,-500.0,0.00014885,2]
[337214698,1725502240718,-500.0,0.00014885,2]
[337214699,1725502240727,-2647.56,0.00014885,2]
[337214700,1725502240737,-1781.56,0.00014885,2]
[337214701,1725502240746,-856.41,0.00014885,2]
[337214702,1725502240755,-500.0,0.00014885,2]
[337214703,1725502240764,-532.89,0.00014885,2]
[337214704,1725502240774,-500.0,0.00014885,2]
[337214705,1725502240783,-1406.35,0.00014885,2]
[337214706,1725502240793,-500.0,0.00014885,2]
[337214707,1725502240802,-513.4,0.00014885,2]
[337214708,1725502240810,-500.0,0.00014885,2]
[337214709,1725502240820,-500.0,0.00014885,2]
[337214710,1725502240829,-513.28068562,0.00014885,2]
[337214711,1725502240839,-500.0,0.00014885,2]
[337214712,1725502240848,-500.0,0.00014885,2]
[337214713,1725502240857,-507.1450321,0.00014885,2]
[337214714,1725502240867,-500.0,0.00014885,2]
[337214715,1725502240876,-503.05828021,0.00014885,2]
[337214716,1725502240886,-1019.26,0.00014885,2]
[337214717,1725502240895,-500.0,0.00014885,2]
[337214718,1725502240905,-623.61,0.00014885,2]
[337214719,1725502240914,-500.0,0.00014885,2]
[337214720,1725502240923,-1044.58,0.00014885,2]
[337214721,1725502240933,-500.0,0.00014885,2]
[337214723,1725502240943,-500.0,0.00014885,2]
[337214725,1725502240952,-500.0,0.00014885,2]
[337214726,1725502240962,-500.0,0.00014885,2]
[337214727,1725502240971,-500.0,0.00014885,2]
[337214728,1725502240981,-1493.11,0.00014885,2]
[337214729,1725502240990,-500.0,0.00014885,2]
[337214730,1725502240999,-621.25,0.00014885,2]
[337214731,1725502241008,-7926.01408968,0.00014886,2]
[337214732,1725502241017,-2802.27,0.00014887,2]
[337214733,1725502241027,-652.69,0.00014887,2]
[337214734,1725502241035,-2751.52,0.00014887,2]
[337214735,1725502241045,-3672.75,0.00014887,2]
[337214736,1725502241055,-1524.3,0.00014887,2]
[337214737,1725502241065,-500.0,0.00014887,2]
[337214738,1725502241074,-771.03,0.00014887,2]
[337214739,1725502241083,-500.0,0.00014887,2]
[337214740,1725502241092,-500.0,0.00014887,2]
[337214741,1725502241102,-3230.85,0.00014887,2]
[337214742,1725502241111,-534.92728483,0.00014887,2]
[337214743,1725502241122,-890.6,0.00014887,2]
[337214744,1725502241131,-685.43,0.00014887,2]
[337214745,1725502241141,-1112.21,0.00014887,2]
[337214746,1725502241150,-500.0,0.00014887,2]
[337214747,1725502241159,-500.0,0.00014887,2]
[337214748,1725502241169,-500.0,0.00014887,2]
[337214749,1725502241178,-500.0,0.00014887,2]
[337214750,1725502241187,-500.0,0.00014887,2]
[337214751,1725502241197,-500.0,0.00014887,2]
[337214752,1725502241207,-500.0,0.00014887,2]
[337214753,1725502241216,-500.0,0.00014887,2]
[337214754,1725502241451,-1015.09,0.00014887,2]
[337214755,1725502241462,-3124.45,0.00014887,2]
[337214756,1725502241471,-1651.21,0.00014887,2]
[337214757,1725502241481,-500.0,0.00014887,2]
[337214758,1725502241490,-500.0,0.00014887,2]
[337214759,1725502241500,-500.0,0.00014887,2]
[337214760,1725502241509,-500.0,0.00014887,2]
[337214761,1725502241518,-500.0,0.00014887,2]
[337214762,1725502241527,-500.0,0.00014887,2]
[337214763,1725502241536,-500.0,0.00014887,2]
[337214764,1725502241546,-500.0,0.00014887,2]
[337214765,1725502241556,-500.0,0.00014887,2]
[337214766,1725502241565,-500.0,0.00014887,2]
[337214767,1725502241574,-500.0,0.00014887,2]
[337214768,1725502241584,-500.0,0.00014887,2]
[337214769,1725502241593,-500.0,0.00014887,2]
[337214770,1725502241602,-500.0,0.00014887,2]
[337214771,1725502241612,-500.0,0.00014887,2]
[337214772,1725502241623,-500.0,0.00014887,2]
[337214773,1725502241632,-500.0,0.00014887,2]
[337214774,1725502241641,-500.0,0.00014887,2]
[337214775,1725502241651,-500.0,0.00014887,2]
[337214776,1725502241661,-575.18,0.00014887,2]
[337214777,1725502241670,-500.0,0.00014887,2]
[337214778,1725502241679,-500.0,0.00014887,2]
[337214779,1725502241688,-1024.2,0.00014887,2]
[337214780,1725502241698,-500.0,0.00014887,2]
[337214781,1725502241708,-500.0,0.00014887,2]
[337214782,1725502241718,-500.0,0.00014887,2]
[337214783,1725502241728,-500.0,0.00014887,2]
[337214784,1725502241737,-500.0,0.00014887,2]
[337214785,1725502241747,-500.0,0.00014887,2]
[337214786,1725502241756,-500.0,0.00014887,2]
[337214787,1725502241765,-500.0,0.00014887,2]
[337214788,1725502241775,-500.0,0.00014887,2]
[337214789,1725502241785,-500.0,0.00014887,2]
[337214790,1725502241794,-500.0,0.00014887,2]
[337214791,1725502241804,-797.12,0.00014887,2]
[337214792,1725502241814,-500.0,0.00014887,2]
[337214793,1725502241824,-500.0,0.00014887,2]
[337214794,1725502241833,-561.36,0.00014887,2]
[337214795,1725502241843,-500.0,0.00014887,2]
[337214796,1725502241853,-500.0,0.00014887,2]
[337214797,1725502241862,-511.37033435,0.00014887,2]
[337214798,1725502241872,-500.0,0.00014887,2]
[337214799,1725502241881,-500.0,0.00014887,2]
[337214800,1725502241890,-500.0,0.00014887,2]
[337214801,1725502241900,-500.0,0.00014887,2]
[337214802,1725502241909,-500.0,0.00014887,2]
[337214803,1725502241918,-500.0,0.00014887,2]
[337214804,1725502241927,-500.0,0.00014887,2]
[337214805,1725502241936,-838.99,0.00014887,2]
[337214806,1725502241946,-500.0,0.00014887,2]
[337214807,1725502241956,-500.0,0.00014887,2]
[337214808,1725502241965,-818.93,0.00014887,2]
[337214809,1725502241974,-500.0,0.00014887,2]
[337214810,1725502241983,-664.81,0.00014887,2]
[337214811,1725502241993,-500.0,0.00014887,2]
[337214812,1725502242002,-500.0,0.00014887,2]
[337214813,1725502242011,-500.0,0.00014887,2]
[337214814,1725502242020,-500.0,0.00014887,2]
[337214815,1725502242029,-500.0,0.00014887,2]
[337214816,1725502242038,-1145.4,0.00014887,2]
[337214817,1725502242048,-500.0,0.00014887,2]
[337214818,1725502242056,-500.0,0.00014888,2]
[337214819,1725502242066,-1016.74,0.00014888,2]
[337214820,1725502242075,-8066.97,0.00014888,2]
[337214821,1725502242084,-5714.32,0.00014888,2]
[337214822,1725502242093,-8553.38,0.00014888,2]
[337214823,1725502242102,-500.0,0.00014888,2]
[337214824,1725502242111,-546.52,0.00014888,2]
[337214825,1725502242121,-500.0,0.00014888,2]
[337214826,1725502242131,-500.0,0.00014888,2]
[337214827,1725502242140,-638.25,0.00014888,2]
[337214828,1725502242149,-688.18,0.00014888,2]
[337214829,1725502242159,-500.0,0.00014888,2]
[337214830,1725502242168,-500.0,0.00014888,2]
[337214831,1725502242178,-500.0,0.00014888,2]
[337214832,1725502242187,-500.0,0.00014888,2]
[337214833,1725502242196,-1629.09,0.00014888,2]
[337214834,1725502242206,-500.0,0.00014888,2]
[337214835,1725502242216,-500.0,0.00014888,2]
[337214836,1725502242226,-500.0,0.00014888,2]
[337214837,1725502242235,-500.0,0.00014888,2]
[337214838,1725502242245,-500.0,0.00014888,2]
[337214839,1725502242255,-352.97332284,0.00014888,2]
[337214840,1725502242264,-205.99540945,0.00014888,2]
[337214841,1725502242274,-10918.7758781,0.00014888,2]
[337214842,1725502242283,-500.0,0.00014889,2]
[337214843,1725502242293,-500.0,0.00014889,2]
[337214844,1725502242302,-517.63013308,0.00014889,2]
[337214845,1725502242312,-500.0,0.00014889,2]
[337214846,1725502242322,-500.0,0.00014889,2]
[337214847,1725502242331,-730.44,0.00014889,2]
[337214848,1725502242341,-500.0,0.00014889,2]
[337214849,1725502242351,-1716.15,0.00014889,2]
[337214850,1725502242361,-500.0,0.00014889,2]
[337214851,1725502242374,-500.0,0.00014889,2]
[337214852,1725502242390,-500.0,0.00014889,2]
[337214853,1725502242399,-7530.58,0.00014889,2]
[337214854,1725502242409,-2647.56,0.00014889,2]
[337214855,1725502242419,-1781.56,0.00014889,2]
[337214856,1725502242428,-500.0,0.00014889,2]
[337214857,1725502242438,-532.89,0.00014889,2]
[337214858,1725502242448,-5459.38793906,0.0001489,2]
[337214859,1725502242458,-352.97332283,0.00014894,2]
[337214860,1725502242468,-205.99540944,0.00014894,2]
[337214861,1725502242478,-2802.27,0.00014898,2]
[337214862,1725502242487,-652.69,0.00014898,2]
[337214863,1725502242496,-2751.52,0.00014898,2]
[337214864,1725502242506,-3672.75,0.00014898,2]
[337214865,1725502242515,-1524.3,0.00014898,2]
[337214866,1725502242524,-500.0,0.00014898,2]
[337214867,1725502242534,-771.03,0.00014898,2]
[337214868,1725502242544,-500.0,0.00014898,2]
[337214869,1725502242553,-526.92228515,0.00014898,2]
[337214870,1725502242562,-3230.85,0.00014898,2]
[337214871,1725502242571,-890.6,0.00014898,2]
[337214872,1725502242581,-685.43,0.00014898,2]
[337214873,1725502242594,-1112.21,0.00014898,2]
[337214874,1725502242604,-500.0,0.00014898,2]
[337214875,1725502242613,-500.0,0.00014898,2]
[337214876,1725502242623,-503.51642567,0.00014898,2]
[337214877,1725502242632,-500.0,0.00014898,2]
[337214878,1725502242642,-500.0,0.00014898,2]
[337214879,1725502242651,-500.0,0.00014898,2]
[337214880,1725502242662,-500.0,0.00014898,2]
[337214881,1725502242671,-201.78608961,0.000149,2]
[337214882,1725502242681,-7926.01408968,0.000149,2]
[337214883,1725502242690,-150.255051,0.000149,2]
[337214884,1725502242700,-423.4721231,0.000149,2]
[337214885,1725502242709,-352.97332283,0.000149,2]
[337214886,1725502242719,-205.99540944,0.000149,2]
[337214887,1725502242729,-5459.38793906,0.00014951,2]
[337214888,1725502242738,-5459.38793906,0.00014953,2]
[337214889,1725502242748,-10918.7758781,0.00014954,2]
[337214890,1725502242758,-5459.38793906,0.00014957,2]
[337214891,1725502242767,-16378.1638172,0.00014959,2]
[337214892,1725502242777,-5459.38793906,0.0001496,2]
[337214893,1725502242787,-21837.5517562,0.00014961,2]
[337214894,1725502242797,-10918.7758781,0.00014961,2]
[337214895,1725502242806,-5459.38793906,0.00014962,2]
[337214896,1725502242816,-500.0,0.00014967,2]
[337214897,1725502242825,-500.0,0.00014967,2]
[337214898,1725502242835,-500.0,0.00014967,2]
[337214899,1725502242844,-500.0,0.00014967,2]
[337214900,1725502242854,-686.71,0.00014967,2]
[337214901,1725502242863,-905.2,0.00014967,2]
[337214902,1725502242881,-500.0,0.00014967,2]
[337214903,1725502242891,-500.0,0.00014967,2]
[337214904,1725502242900,-2099.49,0.00014967,2]
[337214905,1725502242909,-150.5,0.00014969,30]
[337214906,1725502242918,-192.5,0.00014969,30]
[337214907,1725502242928,-500.0,0.00014969,2]
[337214908,1725502242937,-1015.09,0.00014969,2]
[337214909,1725502242946,-3124.45,0.00014969,2]
[337214910,1725502242955,-1651.21,0.00014969,2]
[337214911,1725502242965,-500.0,0.00014969,2]
[337214912,1725502242975,-500.0,0.00014969,2]
[337214913,1725502242983,-518.80862581,0.00014969,2]
[337214914,1725502242992,-518.29356128,0.00014969,2]